[Event "56th Rubinstein Memorial A 2020"]
[Site "Polanica Zdroj"]
[Date "2020.08.15"]
[Round "1.1"]
[White "Betkowski, Andrzej"]
[Black "Ovsejevitsch, Sergei"]
[Result "0-1"]
[ECO "A45"]
[WhiteElo "2044"]
[BlackElo "2587"]
[Annotator "ChessBase"]
[PlyCount "64"]
[EventDate "2020.08.15"]
[EventType "swiss"]
[EventCountry "POL"]
[SourceTitle "playchess.com"]
[Source "ChessBase"]
[SourceQuality "1"]
[TimeControl "40/5400+30:1800+30"]

1. d4 {[%emt 0:00:00]} Nf6 {[%emt 0:00:00]} 2. Bg5 {[%emt 0:00:00]} d5 {[%emt 0:00:07]} 3. e3 {[%emt 0:00:18]} c5 {[%emt 0:00:43]} 4. Nd2 {[%emt 0:00:35]} cxd4 {[%emt 0:02:52]} 5. exd4 {[%emt 0:00:21]} Qb6 {[%emt 0:00:20]} 6. Nb3 {[%emt 0:08:01]} Ne4 {[%emt 0:03:45]} 7. Bf4 {[%emt 0:06:52]} Nc6 {[%emt 0:02:11]} 8. Nf3 {[%emt 0:06:45]} g6 {[%emt 0:17:17]} 9. Be2 {[%emt 0:12:21]} Bg7 {[%emt 0:00:34]} 10. O-O {[%emt 0:04:04]} O-O {[%emt 0:00:11]} 11. c3 {[%emt 0:02:22]} Bf5 {[%emt 0:02:41]} 12. Nfd2 {[%emt 0:06:42]} Rad8 {[%emt 0:04:06]} 13. Nxe4 {[%emt 0:04:58]} dxe4 {[%emt 0:01:09]} 14. Qc1 {[%emt 0:03:58]} e5 {[%emt 0:02:30]} 15. dxe5 {[%emt 0:00:50]} Nxe5 {[%emt 0:00:21]} 16. Be3 {[%emt 0:03:01]} Qc7 {[%emt 0:02:16]} 17. Nd4 {[%emt 0:01:57]} Bg4 {[%emt 0:01:36]} 18. f3 {[%emt 0:08:27]} exf3 {[%emt 0:01:34]} 19. Nxf3 {[%emt 0:05:35]} Rfe8 {[%emt 0:04:44]} 20. Bb5 {[%emt 0:05:17]} Nxf3+ {[%emt 0:12:51]} 21. gxf3 {[%emt 0:00:18]} Bd7 {[%emt 0:01:21]} 22. Bxd7 {[%emt 0:03:06]} Rxd7 {[%emt 0:00:43]} 23. Kg2 {[%emt 0:05:50]} Rd3 {[%emt 0:02:46]} 24. Bf4 {[%emt 0:01:42]} Re2+ {[%emt 0:05:49]} 25. Rf2 {[%emt 0:04:22]} Qc6 {[%emt 0:01:48]} 26. Rxe2 {[%emt 0:01:25]} Qxf3+ {[%emt 0:00:07]} 27. Kg1 {[%emt 0:00:09]} Qxe2 {[%emt 0:00:07]} 28. Qe1 {[%emt 0:01:46]} Qg4+ {[%emt 0:03:02]} 29. Bg3 {[%emt 0:01:12]} h5 {[%emt 0:01:46]} 30. Kh1 {[%emt 0:01:12]} Qf3+ {[%emt 0:04:45]} 31. Kg1 {[%emt 0:00:02]} Bh6 {[%emt 0:00:44]} 32. Qe8+ {[%emt 0:01:32]} Kh7 {[%emt 0:00:39]} 0-1

[Event "56th Rubinstein Memorial A 2020"]
[Site "Polanica Zdroj"]
[Date "2020.08.15"]
[Round "1.3"]
[White "Jachym, Adam"]
[Black "Cukrowski, Filip"]
[Result "0-1"]
[ECO "B42"]
[WhiteElo "2042"]
[BlackElo "2419"]
[Annotator "ChessBase"]
[PlyCount "58"]
[EventDate "2020.08.15"]
[EventType "swiss"]
[EventCountry "POL"]
[SourceTitle "playchess.com"]
[Source "ChessBase"]
[SourceQuality "1"]
[TimeControl "40/5400+30:1800+30"]

1. e4 {[%emt 0:00:00]} c5 {[%emt 0:00:00]} 2. Nf3 {[%emt 0:00:00]} e6 {[%emt 0:00:00]} 3. d4 {[%emt 0:01:10]} cxd4 {[%emt 0:00:00]} 4. Nxd4 {[%emt 0:00:10]} a6 {[%emt 0:00:21]} 5. Bd3 {[%emt 0:02:07]} Qc7 {[%emt 0:00:39]} 6. O-O {[%emt 0:01:49]} Nf6 {[%emt 0:01:29]} 7. Qe2 {[%emt 0:04:06]} d6 {[%emt 0:01:02]} 8. c4 {[%emt 0:03:50]} Nc6 {[%emt 0:00:39]} 9. Nxc6 {[%emt 0:00:57]} bxc6 {[%emt 0:00:58]} 10. Nc3 {[%emt 0:00:56]} Be7 {[%emt 0:01:06]} 11. f4 {[%emt 0:02:01]} e5 {[%emt 0:00:13]} 12. c5 {[%emt 0:07:13]} Qa7 {[%emt 0:10:35]} 13. Na4 {[%emt 0:01:28]} O-O {[%emt 0:00:47]} 14. Nb6 {[%emt 0:01:54]} Bg4 {[%emt 0:01:01]} 15. Qf2 {[%emt 0:01:15]} Rad8 {[%emt 0:00:22]} 16. Bc2 {[%emt 0:05:39]} Be6 {[%emt 0:06:44]} 17. f5 {[%emt 0:01:28]} dxc5 {[%emt 0:00:07]} 18. fxe6 {[%emt 0:00:22]} Qxb6 {[%emt 0:00:05]} 19. exf7+ {[%emt 0:00:39]} Kh8 {[%emt 0:00:04]} 20. a4 {[%emt 0:12:36]} Rxf7 {[%emt 0:03:05]} 21. Ra3 {[%emt 0:01:01]} Rff8 {[%emt 0:03:36]} 22. Rf3 {[%emt 0:06:07]} Nd7 {[%emt 0:00:32]} 23. Qe2 {[%emt 0:03:59]} Rxf3 {[%emt 0:11:02]} 24. Rxf3 {[%emt 0:00:20]} Nf6 {[%emt 0:00:56]} 25. Qc4 {[%emt 0:01:50]} a5 {[%emt 0:10:12]} 26. Qf7 {[%emt 0:07:15]} c4+ {[%emt 0:01:36]} 27. Kh1 {[%emt 0:00:38]} Qb4 {[%emt 0:01:01]} 28. h3 {[%emt 0:02:13]} Qe1+ {[%emt 0:01:27]} 29. Kh2 {[%emt 0:00:08]} Bc5 {[%emt 0:00:22]} 0-1

[Event "56th Rubinstein Memorial A 2020"]
[Site "Polanica Zdroj"]
[Date "2020.08.15"]
[Round "1.4"]
[White "Butkiewicz, Lukasz"]
[Black "Domanski, Lukasz"]
[Result "1-0"]
[ECO "D22"]
[WhiteElo "2400"]
[BlackElo "2039"]
[Annotator "ChessBase"]
[PlyCount "59"]
[EventDate "2020.08.15"]
[EventType "swiss"]
[EventCountry "POL"]
[SourceTitle "playchess.com"]
[Source "ChessBase"]
[SourceQuality "1"]
[TimeControl "40/5400+30:1800+30"]

1. d4 {[%emt 0:00:00]} d5 {[%emt 0:00:00]} 2. c4 {[%emt 0:00:00]} dxc4 {[%emt 0:00:00]} 3. Nf3 {[%emt 0:00:00]} a6 {[%emt 0:00:04]} 4. e3 {[%emt 0:00:07]} b5 {[%emt 0:00:57]} 5. a4 {[%emt 0:00:10]} Bb7 {[%emt 0:00:34]} 6. b3 {[%emt 0:00:08]} e6 {[%emt 0:06:01]} 7. bxc4 {[%emt 0:00:28]} bxc4 {[%emt 0:01:08]} 8. Bxc4 {[%emt 0:01:17]} Nd7 {[%emt 0:02:55]} 9. O-O {[%emt 0:02:42]} Ngf6 {[%emt 0:02:34]} 10. Nc3 {[%emt 0:09:19]} Be7 {[%emt 0:05:16]} 11. a5 {[%emt 0:09:33]} c5 {[%emt 0:05:55]} 12. d5 {[%emt 0:04:55]} exd5 {[%emt 0:01:06]} 13. Nxd5 {[%emt 0:00:15]} Bxd5 {[%emt 0:05:50]} 14. Bxd5 {[%emt 0:00:14]} Nxd5 {[%emt 0:00:13]} 15. Qxd5 {[%emt 0:00:05]} O-O {[%emt 0:02:10]} 16. e4 {[%emt 0:13:21]} Rb8 {[%emt 0:09:57]} 17. Bf4 {[%emt 0:06:53]} Rb5 {[%emt 0:04:20]} 18. e5 {[%emt 0:03:11]} Nb8 {[%emt 0:02:17]} 19. Qe4 {[%emt 0:08:36]} Rxa5 {[%emt 0:06:39]} 20. Rxa5 {[%emt 0:00:31]} Qxa5 {[%emt 0:00:14]} 21. e6 {[%emt 0:00:21]} Qd8 {[%emt 0:10:46]} 22. exf7+ {[%emt 0:03:12]} Rxf7 {[%emt 0:00:31]} 23. Bxb8 {[%emt 0:01:58]} Qxb8 {[%emt 0:00:18]} 24. Ne5 {[%emt 0:00:06]} Bf6 {[%emt 0:03:42]} 25. Nxf7 {[%emt 0:00:29]} Kxf7 {[%emt 0:00:07]} 26. Qd5+ {[%emt 0:01:04]} Kf8 {[%emt 0:00:30]} 27. Qxc5+ {[%emt 0:00:12]} Kg8 {[%emt 0:01:40]} 28. Qc4+ {[%emt 0:00:58]} Kh8 {[%emt 0:00:14]} 29. Qxa6 {[%emt 0:00:05]} h6 {[%emt 0:01:43]} 30. g3 {[%emt 0:00:33]} 1-0

[Event "56th Rubinstein Memorial A 2020"]
[Site "Polanica Zdroj"]
[Date "2020.08.15"]
[Round "1.5"]
[White "Rogacewicz, Mikolaj"]
[Black "Luch, Michal"]
[Result "1-0"]
[ECO "E04"]
[WhiteElo "2011"]
[BlackElo "2397"]
[Annotator "ChessBase"]
[PlyCount "55"]
[EventDate "2020.08.15"]
[EventType "swiss"]
[EventCountry "POL"]
[SourceTitle "playchess.com"]
[Source "ChessBase"]
[SourceQuality "1"]
[TimeControl "40/5400+30:1800+30"]

1. d4 {[%emt 0:00:00]} Nf6 {[%emt 0:00:00]} 2. c4 {[%emt 0:00:00]} e6 {[%emt 0:00:00]} 3. g3 {[%emt 0:00:00]} d5 {[%emt 0:00:45]} 4. Nf3 {[%emt 0:00:08]} dxc4 {[%emt 0:00:06]} 5. Bg2 {[%emt 0:00:38]} Bb4+ {[%emt 0:00:05]} 6. Bd2 {[%emt 0:00:43]} a5 {[%emt 0:00:03]} 7. Qc2 {[%emt 0:00:33]} Bxd2+ {[%emt 0:00:11]} 8. Qxd2 {[%emt 0:00:13]} c6 {[%emt 0:00:59]} 9. a4 {[%emt 0:00:39]} Ne4 {[%emt 0:00:38]} 10. Qf4 {[%emt 0:01:09]} Qb6 {[%emt 0:00:35]} 11. O-O {[%emt 0:07:15]} Qxb2 {[%emt 0:00:27]} 12. Ne5 {[%emt 0:09:01]} O-O {[%emt 0:08:52]} 13. Bxe4 {[%emt 0:25:43]} Qxa1 {[%emt 0:00:09]} 14. Nxc4 {[%emt 0:02:13]} e5 {[%emt 0:21:17]} 15. dxe5 {[%emt 0:03:22]} Be6 {[%emt 0:03:48]} 16. Nbd2 {[%emt 0:20:02]} Qc3 {[%emt 0:10:02]} 17. Bd3 {[%emt 0:04:49]} Nd7 {[%emt 0:24:45]} 18. Ne4 {[%emt 0:04:25]} Qb4 {[%emt 0:00:06]} 19. Ng5 {[%emt 0:07:55]} Rfe8 {[%emt 0:05:07]} 20. Rb1 {[%emt 0:02:43]} Qe7 {[%emt 0:10:37]} 21. Bxh7+ {[%emt 0:01:42]} Kf8 {[%emt 0:00:01]} 22. Nd6 {[%emt 0:01:13]} Red8 {[%emt 0:01:30]} 23. Rxb7 {[%emt 0:04:11]} Rab8 {[%emt 0:00:07]} 24. Rc7 {[%emt 0:02:16]} Rb4 {[%emt 0:06:13]} 25. Be4 {[%emt 0:00:37]} Bd5 {[%emt 0:00:30]} 26. Qh4 {[%emt 0:00:35]} Qxe5 {[%emt 0:00:39]} 27. Nh7+ {[%emt 0:00:43]} Kg8 {[%emt 0:00:09]} 28. Qxd8+ {[%emt 0:00:07]} 1-0

[Event "56th Rubinstein Memorial A 2020"]
[Site "Polanica Zdroj"]
[Date "2020.08.15"]
[Round "1.6"]
[White "Sabuk, Piotr"]
[Black "Golecki, Jan"]
[Result "0-1"]
[ECO "E06"]
[WhiteElo "2377"]
[BlackElo "1988"]
[Annotator "ChessBase"]
[PlyCount "68"]
[EventDate "2020.08.15"]
[EventType "swiss"]
[EventCountry "POL"]
[SourceTitle "playchess.com"]
[Source "ChessBase"]
[SourceQuality "1"]
[TimeControl "40/5400+30:1800+30"]

1. d4 {[%emt 0:00:00]} d5 {[%emt 0:00:00]} 2. c4 {[%emt 0:00:00]} e6 {[%emt 0:00:00]} 3. Nf3 {[%emt 0:00:47]} Nf6 {[%emt 0:00:00]} 4. g3 {[%emt 0:00:49]} Be7 {[%emt 0:00:00]} 5. Bg2 {[%emt 0:00:25]} O-O {[%emt 0:00:06]} 6. Nc3 {[%emt 0:00:37]} c6 {[%emt 0:00:50]} 7. O-O {[%emt 0:00:47]} b6 {[%emt 0:01:06]} 8. Ne5 {[%emt 0:02:09]} Bb7 {[%emt 0:00:18]} 9. e4 {[%emt 0:03:27]} dxc4 {[%emt 0:02:27]} 10. Nxc4 {[%emt 0:03:45]} b5 {[%emt 0:00:51]} 11. Ne3 {[%emt 0:10:44]} b4 {[%emt 0:16:24]} 12. Ne2 {[%emt 0:03:19]} c5 {[%emt 0:11:25]} 13. d5 {[%emt 0:01:06]} Qb6 {[%emt 0:05:56]} 14. b3 {[%emt 0:10:10]} Rd8 {[%emt 0:02:43]} 15. Bb2 {[%emt 0:00:54]} Na6 {[%emt 0:10:00]} 16. Nc4 {[%emt 0:07:27]} Qb5 {[%emt 0:04:46]} 17. Nf4 {[%emt 0:08:33]} exd5 {[%emt 0:01:13]} 18. Nxd5 {[%emt 0:04:15]} Nxd5 {[%emt 0:02:07]} 19. exd5 {[%emt 0:00:08]} Bf8 {[%emt 0:05:37]} 20. Qh5 {[%emt 0:01:51]} Re8 {[%emt 0:05:53]} 21. Ne5 {[%emt 0:07:08]} Re7 {[%emt 0:08:22]} 22. Be4 {[%emt 0:03:54]} g6 {[%emt 0:01:45]} 23. Qg5 {[%emt 0:02:27]} Qe2 {[%emt 0:03:47]} 24. Nc6 {[%emt 0:14:36]} Rxe4 {[%emt 0:01:29]} 25. Qf6 {[%emt 0:00:30]} Rd4 {[%emt 0:00:05]} 26. Bxd4 {[%emt 0:01:22]} cxd4 {[%emt 0:00:02]} 27. Rae1 {[%emt 0:01:01]} Qb5 {[%emt 0:05:39]} 28. Re7 {[%emt 0:01:06]} Qxd5 {[%emt 0:01:19]} 29. Rxb7 {[%emt 0:00:14]} Nc5 {[%emt 0:03:40]} 30. Ne7+ {[%emt 0:02:29]} Bxe7 {[%emt 0:00:02]} 31. Rxe7 {[%emt 0:00:05]} Ne4 {[%emt 0:01:02]} 32. Qf4 {[%emt 0:01:22]} Ng5 {[%emt 0:00:33]} 33. Qg4 {[%emt 0:03:27]} Nf3+ {[%emt 0:00:19]} 34. Kg2 {[%emt 0:00:54]} Ne5+ {[%emt 0:00:30]} 0-1

[Event "56th Rubinstein Memorial A 2020"]
[Site "Polanica Zdroj"]
[Date "2020.08.15"]
[Round "1.7"]
[White "Turski, Bartlomiej"]
[Black "Goluch, Piotr"]
[Result "1/2-1/2"]
[ECO "B13"]
[WhiteElo "1985"]
[BlackElo "2373"]
[Annotator "ChessBase"]
[PlyCount "67"]
[EventDate "2020.08.15"]
[EventType "swiss"]
[EventCountry "POL"]
[SourceTitle "playchess.com"]
[Source "ChessBase"]
[SourceQuality "1"]
[TimeControl "40/5400+30:1800+30"]

1. e4 {[%emt 0:00:00]} c6 {[%emt 0:00:00]} 2. d4 {[%emt 0:00:00]} d5 {[%emt 0:00:00]} 3. exd5 {[%emt 0:00:00]} cxd5 {[%emt 0:00:00]} 4. Bd3 {[%emt 0:00:00]} Nc6 {[%emt 0:00:00]} 5. c3 {[%emt 0:00:00]} Qc7 {[%emt 0:00:40]} 6. Ne2 {[%emt 0:00:11]} Bg4 {[%emt 0:00:23]} 7. O-O {[%emt 0:00:20]} e6 {[%emt 0:00:31]} 8. Qe1 {[%emt 0:00:15]} Bxe2 {[%emt 0:00:06]} 9. Qxe2 {[%emt 0:00:04]} Bd6 {[%emt 0:03:02]} 10. g3 {[%emt 0:00:08]} Nge7 {[%emt 0:02:20]} 11. Nd2 {[%emt 0:02:31]} O-O {[%emt 0:12:41]} 12. f4 {[%emt 0:00:21]} Rae8 {[%emt 0:02:29]} 13. Nf3 {[%emt 0:00:55]} h6 {[%emt 0:03:53]} 14. Bd2 {[%emt 0:01:31]} a6 {[%emt 0:00:47]} 15. Nh4 {[%emt 0:24:07]} Qb6 {[%emt 0:11:23]} 16. Qf2 {[%emt 0:10:39]} f5 {[%emt 0:02:13]} 17. Rae1 {[%emt 0:06:38]} Nd8 {[%emt 0:09:31]} 18. b3 {[%emt 0:16:31]} Bb8 {[%emt 0:00:08]} 19. Qg2 {[%emt 0:02:12]} Nf7 {[%emt 0:10:39]} 20. g4 {[%emt 0:23:10]} fxg4 {[%emt 0:00:10]} 21. Ng6 {[%emt 0:00:46]} Nxg6 {[%emt 0:12:30]} 22. Bxg6 {[%emt 0:00:02]} e5 {[%emt 0:01:02]} 23. Qxg4 {[%emt 0:03:18]} e4 {[%emt 0:02:04]} 24. Kh1 {[%emt 0:02:41]} Re7 {[%emt 0:07:55]} 25. h4 {[%emt 0:03:52]} Qc7 {[%emt 0:05:33]} 26. Re2 {[%emt 0:00:47]} Kh8 {[%emt 0:03:32]} 27. h5 {[%emt 0:01:08]} Nd6 {[%emt 0:00:30]} 28. f5 {[%emt 0:00:46]} e3 {[%emt 0:02:24]} 29. Rxe3 {[%emt 0:00:30]} Rxe3 {[%emt 0:00:09]} 30. Bxe3 {[%emt 0:00:01]} Ne4 {[%emt 0:01:23]} 31. Bf4 {[%emt 0:00:41]} Qxc3 {[%emt 0:00:07]} 32. Bxb8 {[%emt 0:00:26]} Rxb8 {[%emt 0:00:01]} 33. f6 {[%emt 0:00:49]} Nxf6 {[%emt 0:00:44]} 34. Rxf6 {[%emt 0:00:19]} 1/2-1/2

[Event "56th Rubinstein Memorial A 2020"]
[Site "Polanica Zdroj"]
[Date "2020.08.15"]
[Round "1.8"]
[White "Lukasiewicz, Krzysztof"]
[Black "Grzesik, Norbert"]
[Result "1-0"]
[ECO "A45"]
[WhiteElo "2343"]
[BlackElo "1980"]
[Annotator "ChessBase"]
[PlyCount "75"]
[EventDate "2020.08.15"]
[EventType "swiss"]
[EventCountry "POL"]
[SourceTitle "playchess.com"]
[Source "ChessBase"]
[SourceQuality "1"]
[TimeControl "40/5400+30:1800+30"]

1. d4 {[%emt 0:00:00]} Nf6 {[%emt 0:00:00]} 2. Bf4 {[%emt 0:00:00]} g6 {[%emt 0:00:01]} 3. Nc3 {[%emt 0:00:16]} d5 {[%emt 0:01:22]} 4. e3 {[%emt 0:00:10]} Bg7 {[%emt 0:00:25]} 5. h4 {[%emt 0:01:01]} h5 {[%emt 0:01:43]} 6. Be2 {[%emt 0:01:26]} a6 {[%emt 0:03:51]} 7. Nf3 {[%emt 0:01:03]} Nc6 {[%emt 0:02:37]} 8. Ne5 {[%emt 0:02:01]} Bf5 {[%emt 0:07:19]} 9. Nxc6 {[%emt 0:11:29]} bxc6 {[%emt 0:00:03]} 10. Be5 {[%emt 0:00:09]} Kf8 {[%emt 0:08:35]} 11. Na4 {[%emt 0:09:37]} Qc8 {[%emt 0:02:35]} 12. Rc1 {[%emt 0:13:09]} Nd7 {[%emt 0:10:07]} 13. Bg3 {[%emt 0:01:33]} e5 {[%emt 0:05:50]} 14. c4 {[%emt 0:10:01]} Qb7 {[%emt 0:04:33]} 15. O-O {[%emt 0:01:36]} Bf6 {[%emt 0:04:56]} 16. Bf3 {[%emt 0:15:59]} Rd8 {[%emt 0:02:32]} 17. b3 {[%emt 0:02:35]} Kg7 {[%emt 0:00:33]} 18. cxd5 {[%emt 0:05:01]} cxd5 {[%emt 0:00:26]} 19. Qd2 {[%emt 0:04:52]} c6 {[%emt 0:05:51]} 20. Rfd1 {[%emt 0:00:37]} Bg4 {[%emt 0:06:23]} 21. Bxg4 {[%emt 0:05:20]} hxg4 {[%emt 0:00:02]} 22. Qe2 {[%emt 0:00:07]} exd4 {[%emt 0:06:32]} 23. exd4 {[%emt 0:00:09]} Bxh4 {[%emt 0:00:56]} 24. Qxg4 {[%emt 0:00:05]} Bxg3 {[%emt 0:04:50]} 25. Qxg3 {[%emt 0:00:05]} Rde8 {[%emt 0:00:38]} 26. Qc3 {[%emt 0:06:38]} Re6 {[%emt 0:01:06]} 27. Re1 {[%emt 0:00:09]} Rxe1+ {[%emt 0:06:14]} 28. Rxe1 {[%emt 0:00:05]} Qc7 {[%emt 0:00:11]} 29. g3 {[%emt 0:02:10]} Qd6 {[%emt 0:00:40]} 30. Qf3 {[%emt 0:02:36]} Qf6 {[%emt 0:01:14]} 31. Qxf6+ {[%emt 0:01:11]} Kxf6 {[%emt 0:00:06]} 32. Rc1 {[%emt 0:00:46]} Rc8 {[%emt 0:00:03]} 33. Nb2 {[%emt 0:00:10]} c5 {[%emt 0:02:17]} 34. Nd3 {[%emt 0:00:23]} c4 {[%emt 0:01:33]} 35. Nb4 {[%emt 0:00:07]} Ke6 {[%emt 0:10:11]} 36. Nxa6 {[%emt 0:00:18]} Kd6 {[%emt 0:01:01]} 37. Nb4 {[%emt 0:04:21]} cxb3 {[%emt 0:00:42]} 38. Rxc8 1-0

[Event "56th Rubinstein Memorial A 2020"]
[Site "Polanica Zdroj"]
[Date "2020.08.15"]
[Round "1.10"]
[White "Zochowski, Kacper"]
[Black "Kolodziejski, Piotr"]
[Result "1-0"]
[ECO "A05"]
[WhiteElo "2278"]
[BlackElo "1928"]
[Annotator "ChessBase"]
[PlyCount "67"]
[EventDate "2020.08.15"]
[EventType "swiss"]
[EventCountry "POL"]
[SourceTitle "playchess.com"]
[Source "ChessBase"]
[SourceQuality "1"]
[TimeControl "40/5400+30:1800+30"]

1. Nf3 {[%emt 0:07:05]} Nf6 {[%emt 0:00:00]} 2. c4 {[%emt 0:00:08]} d5 {[%emt 0:02:18]} 3. cxd5 {[%emt 0:01:24]} Nxd5 {[%emt 0:02:15]} 4. e4 {[%emt 0:07:03]} Nf6 {[%emt 0:00:58]} 5. Nc3 {[%emt 0:01:31]} c5 {[%emt 0:02:35]} 6. d4 {[%emt 0:07:35]} cxd4 {[%emt 0:04:15]} 7. Qxd4 {[%emt 0:07:59]} Qxd4 {[%emt 0:06:48]} 8. Nxd4 {[%emt 0:00:07]} e5 {[%emt 0:02:55]} 9. Ndb5 {[%emt 0:02:31]} Na6 {[%emt 0:00:44]} 10. Be3 {[%emt 0:02:06]} Bb4 {[%emt 0:03:13]} 11. a3 {[%emt 0:11:51]} Bxc3+ {[%emt 0:03:12]} 12. Nxc3 {[%emt 0:00:24]} Nc7 {[%emt 0:01:10]} 13. Bb5+ {[%emt 0:22:18]} Bd7 {[%emt 0:09:09]} 14. Bxd7+ {[%emt 0:00:43]} Nxd7 {[%emt 0:04:31]} 15. O-O-O {[%emt 0:05:24]} b6 {[%emt 0:06:06]} 16. Rd6 {[%emt 0:05:53]} O-O-O {[%emt 0:03:20]} 17. a4 {[%emt 0:04:17]} Nf6 {[%emt 0:05:13]} 18. Rxd8+ {[%emt 0:00:49]} Rxd8 {[%emt 0:00:14]} 19. f3 {[%emt 0:02:35]} Rd3 {[%emt 0:03:51]} 20. Re1 {[%emt 0:01:39]} Na6 {[%emt 0:03:19]} 21. Kc2 {[%emt 0:04:51]} Rd7 {[%emt 0:02:29]} 22. Nb5 {[%emt 0:01:03]} Nb4+ {[%emt 0:02:39]} 23. Kb1 {[%emt 0:00:28]} Kb7 {[%emt 0:03:00]} 24. Rc1 {[%emt 0:00:56]} a6 {[%emt 0:05:08]} 25. Na3 {[%emt 0:00:11]} Rd3 {[%emt 0:01:19]} 26. Nc4 {[%emt 0:00:12]} Nd7 {[%emt 0:01:49]} 27. Bd2 {[%emt 0:00:28]} Nc6 {[%emt 0:01:25]} 28. Bc3 {[%emt 0:00:38]} Nc5 {[%emt 0:09:22]} 29. Bxe5 {[%emt 0:01:23]} Nxe5 {[%emt 0:06:15]} 30. Nxe5 {[%emt 0:00:01]} Rd2 {[%emt 0:00:17]} 31. Nxf7 {[%emt 0:01:12]} Rxg2 {[%emt 0:03:56]} 32. a5 {[%emt 0:00:15]} Rd2 {[%emt 0:01:30]} 33. axb6 {[%emt 0:00:42]} Nd3 {[%emt 0:00:37]} 34. Nd6+ {[%emt 0:00:07]} 1-0

[Event "56th Rubinstein Memorial A 2020"]
[Site "Polanica Zdroj"]
[Date "2020.08.15"]
[Round "1.11"]
[White "Mirowska, Oliwia"]
[Black "Kucza, Karol"]
[Result "0-1"]
[ECO "D02"]
[WhiteElo "1927"]
[BlackElo "2277"]
[Annotator "ChessBase"]
[PlyCount "88"]
[EventDate "2020.08.15"]
[EventType "swiss"]
[EventCountry "POL"]
[SourceTitle "playchess.com"]
[Source "ChessBase"]
[SourceQuality "1"]
[TimeControl "40/5400+30:1800+30"]

1. d4 {[%emt 0:00:00]} d5 {[%emt 0:00:00]} 2. Bf4 {[%emt 0:00:01]} Nf6 {[%emt 0:00:09]} 3. Nf3 {[%emt 0:00:08]} c5 {[%emt 0:00:27]} 4. e3 {[%emt 0:00:20]} Nc6 {[%emt 0:00:15]} 5. c3 {[%emt 0:00:13]} Qb6 {[%emt 0:00:15]} 6. Qc1 {[%emt 0:01:55]} Bf5 {[%emt 0:01:41]} 7. Nbd2 {[%emt 0:00:58]} Rc8 {[%emt 0:00:47]} 8. dxc5 {[%emt 0:00:45]} Qxc5 {[%emt 0:00:06]} 9. Nb3 {[%emt 0:00:06]} Qb6 {[%emt 0:00:12]} 10. Nbd4 {[%emt 0:00:47]} Be4 {[%emt 0:04:21]} 11. Be2 {[%emt 0:02:43]} e6 {[%emt 0:04:10]} 12. O-O {[%emt 0:04:01]} Be7 {[%emt 0:01:18]} 13. h4 {[%emt 0:06:47]} O-O {[%emt 0:02:40]} 14. Bg3 {[%emt 0:09:05]} Rfe8 {[%emt 0:04:26]} 15. Ng5 {[%emt 0:08:41]} h6 {[%emt 0:02:58]} 16. Nh3 {[%emt 0:04:12]} Bh7 {[%emt 0:05:31]} 17. f3 {[%emt 0:10:39]} Bc5 {[%emt 0:10:19]} 18. Bf2 {[%emt 0:01:37]} Ne5 {[%emt 0:00:49]} 19. Qd2 {[%emt 0:01:19]} Nc4 {[%emt 0:06:07]} 20. Bxc4 {[%emt 0:14:12]} dxc4 {[%emt 0:00:05]} 21. Rad1 {[%emt 0:02:32]} e5 {[%emt 0:01:19]} 22. Ne2 {[%emt 0:03:19]} Red8 {[%emt 0:03:54]} 23. Qc1 {[%emt 0:01:48]} Bd3 {[%emt 0:06:52]} 24. Rfe1 {[%emt 0:08:02]} Nd5 {[%emt 0:13:07]} 25. Ng3 {[%emt 0:03:48]} f5 {[%emt 0:04:05]} 26. e4 {[%emt 0:07:23]} Nf4 {[%emt 0:00:49]} 27. Bxc5 {[%emt 0:02:36]} Nxh3+ {[%emt 0:00:20]} 28. Kh2 {[%emt 0:00:36]} Qxc5 {[%emt 0:01:16]} 29. Kxh3 {[%emt 0:00:39]} f4 {[%emt 0:00:48]} 30. Nh1 {[%emt 0:01:34]} Rc6 {[%emt 0:06:59]} 31. Rd2 {[%emt 0:01:17]} Rg6 {[%emt 0:00:43]} 32. Qd1 {[%emt 0:00:38]} Qe7 {[%emt 0:02:21]} 33. b3 {[%emt 0:02:04]} b5 {[%emt 0:00:28]} 34. bxc4 {[%emt 0:00:20]} bxc4 {[%emt 0:00:19]} 35. Qa4 {[%emt 0:00:24]} Rb8 {[%emt 0:01:28]} 36. Qa5 {[%emt 0:00:47]} Rbb6 {[%emt 0:01:23]} 37. Red1 {[%emt 0:01:18]} Kh7 {[%emt 0:00:38]} 38. Qd5 {[%emt 0:00:23]} a6 {[%emt 0:02:27]} 39. Qa8 {[%emt 0:00:48]} Rbc6 {[%emt 0:06:36]} 40. Rb2 {[%emt 0:00:00]} Rb6 {[%emt 0:00:00]} 41. Rbd2 {[%emt 0:08:39]} Qa3 {[%emt 0:07:38]} 42. Qc8 {[%emt 0:00:36]} Rb2 {[%emt 0:07:24]} 43. Rxb2 {[%emt 0:03:25]} Qxb2 {[%emt 0:01:22]} 44. Rg1 {[%emt 0:00:12]} Bf1 {[%emt 0:01:12]} 0-1

[Event "56th Rubinstein Memorial A 2020"]
[Site "Polanica Zdroj"]
[Date "2020.08.15"]
[Round "1.12"]
[White "Bronowicki, Mateusz"]
[Black "Dytman, Radoslaw"]
[Result "1-0"]
[ECO "A10"]
[WhiteElo "2275"]
[BlackElo "1919"]
[Annotator "ChessBase"]
[PlyCount "69"]
[EventDate "2020.08.15"]
[EventType "swiss"]
[EventCountry "POL"]
[SourceTitle "playchess.com"]
[Source "ChessBase"]
[SourceQuality "1"]
[TimeControl "40/5400+30:1800+30"]

1. c4 {[%emt 0:00:26]} d6 {[%emt 0:00:19]} 2. Nc3 {[%emt 0:00:15]} e5 {[%emt 0:00:42]} 3. g3 {[%emt 0:01:21]} g6 {[%emt 0:01:25]} 4. Bg2 {[%emt 0:00:32]} Bg7 {[%emt 0:00:29]} 5. e4 {[%emt 0:02:13]} Nc6 {[%emt 0:01:43]} 6. Nge2 {[%emt 0:02:06]} Nge7 {[%emt 0:02:55]} 7. d3 {[%emt 0:01:21]} O-O {[%emt 0:01:35]} 8. O-O {[%emt 0:25:14]} Nd4 {[%emt 0:07:13]} 9. Nxd4 {[%emt 0:06:52]} exd4 {[%emt 0:00:14]} 10. Nd5 {[%emt 0:00:29]} c6 {[%emt 0:06:52]} 11. Nxe7+ {[%emt 0:03:45]} Qxe7 {[%emt 0:00:10]} 12. Bd2 {[%emt 0:00:07]} Be6 {[%emt 0:04:08]} 13. h4 {[%emt 0:05:11]} Qd7 {[%emt 0:12:24]} 14. h5 {[%emt 0:19:28]} d5 {[%emt 0:09:47]} 15. exd5 {[%emt 0:08:52]} cxd5 {[%emt 0:00:12]} 16. h6 {[%emt 0:01:57]} Be5 {[%emt 0:08:16]} 17. Re1 {[%emt 0:02:18]} Bc7 {[%emt 0:05:32]} 18. Qf3 {[%emt 0:01:29]} f5 {[%emt 0:04:31]} 19. cxd5 {[%emt 0:02:33]} Bf7 {[%emt 0:00:18]} 20. Bb4 {[%emt 0:07:10]} Bd6 {[%emt 0:15:22]} 21. Bxd6 {[%emt 0:00:01]} Qxd6 {[%emt 0:00:08]} 22. Qf4 {[%emt 0:00:03]} Qxf4 {[%emt 0:06:59]} 23. gxf4 {[%emt 0:00:01]} Rfe8 {[%emt 0:00:23]} 24. Rxe8+ {[%emt 0:02:11]} Rxe8 {[%emt 0:00:36]} 25. Rc1 {[%emt 0:00:07]} Kf8 {[%emt 0:02:07]} 26. Rc7 {[%emt 0:01:27]} Rb8 {[%emt 0:01:12]} 27. b4 {[%emt 0:02:59]} a6 {[%emt 0:01:04]} 28. a4 {[%emt 0:01:31]} Ke8 {[%emt 0:00:26]} 29. Kh2 {[%emt 0:00:28]} Kf8 {[%emt 0:02:32]} 30. Kg3 {[%emt 0:00:09]} Kg8 {[%emt 0:00:55]} 31. d6 {[%emt 0:01:23]} Rd8 {[%emt 0:01:12]} 32. Bxb7 {[%emt 0:00:35]} Bb3 {[%emt 0:00:17]} 33. Bxa6 {[%emt 0:01:10]} Rxd6 {[%emt 0:00:05]} 34. Bc4+ {[%emt 0:00:33]} Bxc4 {[%emt 0:00:06]} 35. Rxc4 {[%emt 0:00:03]} 1-0